Cogmind - Beta 14 @@@ ROGUE MODE // 2024.09.18 @ 23:24:43 Player: hanzu Result: Destroyed by S-27 Virus with Autogun Performance ------------- Evolutions (6) 3000 Regions Visited (16) 3200 Robots Destroyed (103) 515 Value Destroyed (4140) 4140 Prototype IDs (49) 980 Alien Tech Used (2) 400 Bonus (1672) 1672 TOTAL SCORE: 13907 Bonus ------- High Alert Combat Kills 59 Follower Combat Kills 963 Entered Garrisons 200 Registered with UFD 300 Met Data Miner 300 Met Zhirov 300 Friendly Fire -450 Cogmind --------- Core Integrity 0/1150 Matter 162/300 Energy 99/100 System Corruption 14% Temperature Cool (0) Movement Core (50) Location -4/Garrison Parts ------- > --- POWER (3) -------- (None) > --- PROPULSION (5) --- (None) > --- UTILITY (8) ------ (None) > --- WEAPON (3) ------- (None) > --- INVENTORY (5) ---- (None) Peak State ------------ > --- POWER ------------ Neutrino Core Neutrino Core Meta Core > --- PROPULSION ------- Armored Medium Treads Armored Medium Treads Overtuned Huge Scrapsphere > --- UTILITY ---------- Scrap Suit Advanced Heat Sink Improved Cooling System Makeshift Transmission Jammer Layered Medium Armor Plating Advanced Hardlight Generator > --- WEAPON ----------- Heavy Plasma Cannon Advanced Plasma Cannon Neutron Cannon > --- INVENTORY -------- Improved Cooling System Energy Well Improved Matter Compressor Layered Medium Armor Plating Cooled Particle Cannon [Rating: 103] Favorites ----------- Power Meta Core Engine Reinforced Ion Engine Power Core Meta Core Reactor Heavy Antimatter Reactor Propulsion Light Treads Treads Light Treads Leg Carbon-fiber Leg Wheel Armored Wheel Flight Unit Impulse Thruster Utility Advanced Heat Sink Device Advanced Heat Sink Storage Small Storage Unit Processor 0b10 Decoder Chip [Skirmisher] Hackware Hacking Suite Protection Scrap Shield Weapon Improved Light Cannon Energy Gun Heavy Laser Energy Cannon Subdweller Beam Cannon Ballistic Gun Subdweller Machine Gun Ballistic Cannon Improved Light Cannon Launcher Rocket Launcher Build | -11 -10 -10 -9 -9 -6 -6 -6 -6 -5 -5 -5 -5 -5 -4 -4 -4 ------- Run | Yrd Mat Sub Rec Scr Fac Low Low Dat Pro Fac Upp Upp Zhi Pro Fac Gar Slots Evolved 12 | . . . . . 8 . . . . 2 . . . . 2 . Power 2 | . . . . . 2 . . . . . . . . . . . Propulsion 3 | . . . . . 2 . . . . . . . . . 1 . Utility 6 | . . . . . 3 . . . . 2 . . . . 1 . Weapon 1 | . . . . . 1 . . . . . . . . . . . Parts Attached 126 | 6 5 8 . 7 32 9 4 . 3 14 1 1 6 12 12 6 Power 17 | 1 1 1 . . 5 1 . . 1 2 . . 1 3 1 . Engine 8 | 1 1 . . . 5 1 . . . . . . . . . . Core 5 | . . 1 . . . . . . 1 2 . . . 1 . . Reactor 4 | . . . . . . . . . . . . . 1 2 1 . Propulsion 29 | 2 . 2 . 4 8 2 . . . 4 . . . 1 3 3 Treads 13 | 2 . 2 . 4 1 . . . . 3 . . . 1 . . Leg 1 | . . . . . 1 . . . . . . . . . . . Wheel 11 | . . . . . 6 2 . . . 1 . . . . 2 . Hover . | . . . . . . . . . . . . . . . . . Flight 4 | . . . . . . . . . . . . . . . 1 3 Utility 49 | 1 1 1 . 2 12 5 3 . . 8 1 . 4 5 4 2 Device 25 | . 1 . . . 6 2 2 . . 6 1 . 2 3 2 . Storage 7 | 1 . . . . 1 1 . . . 1 . . . 1 . 2 Processor 3 | . . . . 1 1 . 1 . . . . . . . . . Hackware 1 | . . . . . . . . . . . . . . . 1 . Protection 13 | . . 1 . 1 4 2 . . . 1 . . 2 1 1 . Artifact . | . . . . . . . . . . . . . . . . . Weapon 31 | 2 3 4 . 1 7 1 1 . 2 . . 1 1 3 4 1 Energy Gun 12 | 1 3 . . 1 5 . . . 1 . . . . . 1 . Energy Cannon 7 | . . 1 . . . . . . 1 . . 1 1 . 2 1 Ballistic Gun 8 | 1 . 1 . . . 1 1 . . . . . . 3 1 . Ballistic Cannon 3 | . . 2 . . 1 . . . . . . . . . . . Launcher 1 | . . . . . 1 . . . . . . . . . . . Special Weapon . | . . . . . . . . . . . . . . . . . Impact Weapon . | . . . . . . . . . . . . . . . . . Slashing Weapon . | . . . . . . . . . . . . . . . . . Piercing Weapon . | . . . . . . . . . . . . . . . . . Special Melee Weapon . | . . . . . . . . . . . . . . . . . Unidentified Prototypes 9 | . . . . . 1 1 . . . 2 . . 4 . 1 . Corrupted Parts 2 | . . . . . . . . . . . . 1 . . 1 . System Corruption 20 | . . . . . . . . . . . . 10 . . 10 . Parts Lost 63 | . 1 4 . . 13 1 3 . 8 1 . . . 13 16 3 Power 10 | . . . . . 2 . 1 . 1 . . . . 4 2 . Propulsion 12 | . . 1 . . 3 . . . 2 1 . . . . 3 2 Utility 19 | . . . . . 5 1 1 . 1 . . . . 5 6 . Weapon 22 | . 1 3 . . 3 . 1 . 4 . . . . 4 5 1 Highest Loss Streak 9 | . 1 2 . . 7 1 2 . 5 1 . . . 4 9 3 To Critical Strikes 3 | . . . . . . . . . . . . . . 1 2 . Average Slot Usage (%) 79 | . 94 80 70 81 73 84 79 62 66 68 87 88 71 75 45 5 Engine 5 | . 14 9 . . 7 13 7 6 2 . . . . . . . Core 6 | . . 3 10 10 6 6 6 6 6 14 17 17 15 5 . . Treads 18 | . 28 25 20 29 7 . . . . 3 11 11 11 9 . . Wheel 4 | . . . . . 8 19 20 20 12 4 5 5 5 5 8 . Device 8 | . 9 . . . 9 15 21 20 19 23 28 29 28 26 11 . Storage 1 | . 14 . . . 2 2 . . . . . . . . 5 . Processor 1 | . . . . 2 6 . 2 6 6 3 . . . . . . Protection 7 | . . 12 10 10 5 5 1 . . 2 5 5 5 2 1 . Energy Gun 5 | . 24 . . 2 12 17 6 . 5 2 5 . . . . . Energy Cannon 5 | . . 7 10 8 . . . . 2 7 11 15 2 12 5 . Ballistic Gun 4 | . 2 3 10 8 1 2 10 1 8 . . . . 3 6 . Ballistic Cannon 7 | . . 17 10 10 2 . . . . . . . . . . . Peak Build Rating 103 | 6 11 26 26 36 74 76 71 61 62 100 100 103 103 99 76 17 Average Rating 40 | 4 9 16 26 30 54 71 62 51 58 78 99 102 84 84 51 5 On Entrance 52 | . 6 11 26 26 34 74 71 61 61 49 99 100 103 98 57 8 Naked Turns 31 | . . . . . . . . . . . . . . . 6 25 Heaviest Build 109 | 13 22 40 40 47 52 69 58 29 29 78 87 92 104 109 51 5 Greatest Support 86 | 40 40 40 40 68 86 52 52 52 52 28 20 20 20 54 36 7 Greatest Overweight (x) 14 | . . . . . 10 2 1 . 1 14 4 4 5 5 11 1 Average Overweight (x) . | . . . . . . . . . . 2 3 4 3 3 1 . Largest Inventory Capacity 10 | 8 8 8 5 5 5 10 5 5 5 5 5 5 5 5 5 5 Average Capacity 5 | 6 8 5 5 5 5 7 5 5 5 5 5 5 5 5 5 5 Most Carried 8 | 2 8 6 5 5 5 7 4 3 5 5 5 5 5 5 3 2 Average Carried 4 | 1 5 4 5 4 3 4 2 3 4 3 5 4 5 4 1 . Final Capacity 8 | 8 8 5 5 5 5 5 5 5 5 5 5 5 5 5 5 5 Final Carried 6 | 2 6 5 5 5 5 2 3 3 3 5 5 5 5 3 2 . Class Distribution -------------------- 37% | Mutant 22% | Subdweller-Tank 13% | Scavenger-Tank 9% | Scavenger-Mutant 7% | Scavenger-Gunner 6% | Tank Dominant Class ---------------- Mutant | -10/Materials Mutant | -10/Subcaves Subdweller-Tank | -9/Recycling Subdweller-Tank | -9/Scraptown Tank | -6/Factory Scavenger-Gunner | -6/Lower Caves Scavenger-Gunner | -6/Lower Caves Scavenger-Mutant | -6/Data Miner Scavenger-Gunner | -5/Proximity Caves Scavenger-Tank | -5/Factory Scavenger-Tank | -5/Upper Caves Scavenger-Tank | -5/Upper Caves Scavenger-Mutant | -5/Zhirov Scavenger-Tank | -4/Proximity Caves Scavenger-Gunner | -4/Factory Scavenger-Gunner | -4/Garrison Resources | -11 -10 -10 -9 -9 -6 -6 -6 -6 -5 -5 -5 -5 -5 -4 -4 -4 ----------- Run | Yrd Mat Sub Rec Scr Fac Low Low Dat Pro Fac Upp Upp Zhi Pro Fac Gar Matter Collected 3046 | 140 180 673 . 79 834 184 . . 150 428 10 10 . 268 70 20 Remotely . | . . . . . . . . . . . . . . . . . Salvage Created 4710 | . 724 680 . . 815 403 . . 172 295 202 . . 1086 283 50 Parts 213 | . 44 45 . . 30 12 . . 14 21 6 . . 30 10 1 Haulers Intercepted 1 | . 1 . . . . . . . . . . . . . . . Recyclers Shooed 4 | . 1 . . . 1 . . . . 2 . . . . . . Parts Field Recycled . | . . . . . . . . . . . . . . . . . Retrieved Matter . | . . . . . . . . . . . . . . . . . Parts Self-Destructed 81 | . . 17 . . . 7 . . 21 . 10 4 . 22 . . Prevented 1 | . . . . . . . . . . . . 1 . . . . Kills | -11 -10 -10 -9 -9 -6 -6 -6 -6 -5 -5 -5 -5 -5 -4 -4 -4 ------- Run | Yrd Mat Sub Rec Scr Fac Low Low Dat Pro Fac Upp Upp Zhi Pro Fac Gar Combat Hostiles Destroyed 86 | . 12 21 . . 14 5 . . 6 4 3 . . 15 4 2 Guns 34 | . 11 2 . . 9 4 . . 4 3 . . . 1 . . Cannons 40 | . . 19 . . 1 . . . 2 1 2 . . 10 3 2 AOE 4 | . . . . . 2 . . . . . . . . 2 . . Classes Destroyed 18 | . 6 3 . . 3 1 . . . 2 1 . . 2 . . Worker 1 | . . . . . 1 . . . . . . . . . . . Tunneler 1 | . . . . . . . . . . 1 . . . . . . Hauler 1 | . 1 . . . . . . . . . . . . . . . Recycler 3 | . 2 . . . 1 . . . . . . . . . . . Mechanic 1 | . . . . . 1 . . . . . . . . . . . Operator 2 | . 1 . . . 1 . . . . . . . . . . . Turret 2 | . . 2 . . . . . . . . . . . . . . Watcher 3 | . 2 . . . . . . . . . . . . . 1 . Swarmer 19 | . 3 4 . . 1 . . . 5 2 . . . 1 1 2 Grunt 35 | . 9 . . . 10 5 . . . . 2 . . 8 1 . Brawler 3 | . . . . . . . . . . . 1 . . 1 1 . Duelist 2 | . . . . . . . . . . . . . . 2 . . Sentry 3 | . . 1 . . . . . . . . . . . 2 . . Specialist 1 | . . . . . . . . . . 1 . . . . . . Hunter 3 | . . . . . . . . . . . . . . 2 1 . Programmer 5 | . . . . . 3 . . . 1 1 . . . . . . Subdweller 16 | . . 16 . . . . . . . . . . . . . . Scrapoid 2 | . . . . . . 1 . . . 1 . . . . . . Best Kill Streak 7 | . 7 4 . . 4 2 . . 3 3 3 . . 5 4 2 Combat Bots Only 5 | . 3 2 . . 3 2 . . 3 2 3 . . 5 2 2 Max Kills in Single Turn 2 | . 1 2 . . 1 1 . . 1 1 1 . . 2 1 1 Gunslinging . | . . . . . . . . . . . . . . . . . Exploded 2 | . . . . . 1 . . . . . . . . 2 . . Melee . | . . . . . . . . . . . . . . . . . Uniques/NPCs Destroyed . | . . . . . . . . . . . . . . . . . Combat | -11 -10 -10 -9 -9 -6 -6 -6 -6 -5 -5 -5 -5 -5 -4 -4 -4 -------- Run | Yrd Mat Sub Rec Scr Fac Low Low Dat Pro Fac Upp Upp Zhi Pro Fac Gar Hostile Shots Fired 993 | . 45 90 . . 139 52 48 . 79 20 3 3 . 241 152 121 Missed 292 | . 11 25 . . 32 6 14 . 28 8 2 . . 73 41 52 Damage Taken 11885 | . 441 1216 . . 2178 893 509 . 864 220 11 56 . 2717 1828 952 Core 2179 | . 22 84 . . 458 139 41 . 108 . . 22 . 146 359 800 Absorbed by Shields 1032 | . . . . . 30 148 . . . . 8 48 . 736 . 62 Ignored by Resistances 120 | . . . . . 120 . . . . . . . . . . . Regen/Repaired (Parts) 116 | . . . . . 70 . 5 . . . . 24 . 17 . . Core Remaining (%) 61 | 100 . . . 57 . . . . 12 . . . . 76 . . Volleys Fired 334 | . 36 92 . . 68 18 . . 27 19 6 . . 38 26 4 Largest 3 | . 2 3 . . 3 3 . . 3 3 3 . . 3 3 1 Hottest 278 | . 90 149 . . 219 218 . . 164 257 257 . . 278 153 30 Shots Fired 709 | . 71 174 . . 125 43 . . 60 43 17 . . 112 60 4 Gun 335 | . 71 20 . . 102 43 . . 44 9 5 . . 9 32 . Cannon 370 | . . 154 . . 19 . . . 16 34 12 . . 103 28 4 Launcher 4 | . . . . . 4 . . . . . . . . . . . Special . | . . . . . . . . . . . . . . . . . Kinetic 248 | . 15 113 . . 54 . . . 27 . . . . 9 30 . Thermal 394 | . . 61 . . 67 43 . . 26 43 17 . . 103 30 4 Explosive 4 | . . . . . 4 . . . . . . . . . . . Electromagnetic 63 | . 56 . . . . . . . 7 . . . . . . . Robot Hit Streak 27 | . 8 25 . . 9 8 . . 5 3 7 . . 27 7 1 Robot Miss Streak 6 | . 4 5 . . 6 2 . . 6 5 1 . . 6 6 3 Penetration Max 1 | . . . . . . . . . . . . . . 1 . . Secondary Targets 6 | . 1 . . . . 2 . . 3 . . . . . . . Max Gunslinging Chain 1 | . 1 . . . . 1 . . 1 . . . . . . . Shots Hit Robots 410 | . 43 88 . . 93 30 . . 34 13 13 . . 65 30 1 Core Hits 180 | . 18 32 . . 48 17 . . 9 7 6 . . 30 10 3 Critical Kills 2 | . . . . . . . . . . . . . . 1 1 . Critical Parts Destroyed 1 | . . . . . . . . . 1 . . . . . . . Critical Strikes 12 | . . 1 . . 6 2 . . 1 . . . . 1 1 . Burn 7 | . . . . . 5 2 . . . . . . . . . . Meltdown 2 | . . . . . . . . . . . . . . 1 1 . Destroy 1 | . . . . . . . . . 1 . . . . . . . Blast 2 | . . 1 . . 1 . . . . . . . . . . . Melee Attacks . | . . . . . . . . . . . . . . . . . Impact . | . . . . . . . . . . . . . . . . . Slashing . | . . . . . . . . . . . . . . . . . Piercing . | . . . . . . . . . . . . . . . . . Sneak Attacks . | . . . . . . . . . . . . . . . . . Combat Hostiles . | . . . . . . . . . . . . . . . . . Follow-up Attacks . | . . . . . . . . . . . . . . . . . Damage Inflicted 11141 | . 874 1793 . . 2378 655 . . 980 566 373 . . 2499 962 61 Guns 4386 | . 669 256 . . 1775 655 . . 496 89 79 . . 87 280 . Cannons 6003 | . . 1537 . . 287 . . . 484 464 294 . . 2205 676 56 Explosions 728 | . 205 . . . 316 . . . . . . . . 207 . . Melee . | . . . . . . . . . . . . . . . . . Ramming 24 | . . . . . . . . . . 13 . . . . 6 5 Kinetic 2820 | . 26 1124 . . 955 . . . 365 . . . . 87 263 . Thermal 7268 | . 205 669 . . 1107 655 . . 545 553 373 . . 2412 693 56 Explosive 316 | . . . . . 316 . . . . . . . . . . . Electromagnetic 713 | . 643 . . . . . . . 70 . . . . . . . Impact . | . . . . . . . . . . . . . . . . . Slashing . | . . . . . . . . . . . . . . . . . Piercing . | . . . . . . . . . . . . . . . . . Highest Corruption 14 | . . . . . 1 1 1 1 1 . . 10 10 10 14 14 Average Corruption 5 | . . . . . 1 1 1 1 1 . . 10 10 10 12 14 Corruption Purged 1 | . . . . . 1 . . . . . . . . . . . Corruption Blocked . | . . . . . . . . . . . . . . . . . Effects 70 | . . . . . 1 . 6 1 3 . . 7 8 29 10 5 Message Errors 18 | . . . . . . . . . 1 . . 3 3 8 2 1 Matter Fused 18 | . . . . . 1 . 1 . . . . 2 1 10 2 1 Heat Flow Errors 4 | . . . . . . . . 1 . . . . 2 1 . . Energy Discharges 3 | . . . . . . . . . 1 . . . . 1 1 . Parts Rejected 2 | . . . . . . . . . . . . . . . 1 1 Parts Fused 2 | . . . . . . . 1 . . . . . 1 . . . Data Loss (minor) 9 | . . . . . . . 3 . 1 . . . 1 3 1 . Data Loss (major) 5 | . . . . . . . 1 . . . . 1 . 1 2 . Misfires 3 | . . . . . . . . . . . . . . 2 1 . Alerts 1 | . . . . . . . . . . . . 1 . . . . Misdirections 4 | . . . . . . . . . . . . . . 2 . 2 Weapon Failures 1 | . . . . . . . . . . . . . . 1 . . Overload Shots 8 | . . . . . . . . . . . . . . . 8 . Overflow Damage 182 | . 19 . . . 15 . . . 13 37 22 . . 26 50 . Projectiles 153 | . . . . . 5 . . . 13 37 22 . . 26 50 . Explosions 29 | . 19 . . . 10 . . . . . . . . . . . Melee . | . . . . . . . . . . . . . . . . . Knockbacks 18 | . . 13 . . 5 . . . . . . . . . . . Impact . | . . . . . . . . . . . . . . . . . Kinetic 18 | . . 13 . . 5 . . . . . . . . . . . Secondary . | . . . . . . . . . . . . . . . . . Self-Inflicted Damage 340 | . 74 . . . 182 . . . . 6 . . . 73 3 2 Shots 7 | . 2 . . . 4 . . . . . . . . 1 . . Rammed 4 | . . . . . . . . . . 2 . . . . 1 1 Targets Rammed 4 | . . . . . . . . . . 2 . . . . 1 1 Kicked . | . . . . . . . . . . . . . . . . . Crushed . | . . . . . . . . . . . . . . . . . Highest Temperature 796 | . 138 279 . . 796 533 . 104 48 181 170 279 115 170 11 . Average Temperature 97 | . 44 52 . . 157 193 . 72 15 73 73 159 53 63 11 . Received Heat Transfer 2533 | . 180 577 . . 833 311 87 . 36 27 5 . . 298 164 15 Effects 49 | . . . . . 38 11 . . . . . . . . . . Shutdowns 13 | . . . . . 9 4 . . . . . . . . . . Energy Bleed 5 | . . . . . 2 3 . . . . . . . . . . Interference 6 | . . . . . 6 . . . . . . . . . . . Matter Decay 4 | . . . . . 2 2 . . . . . . . . . . Short Circuit 4 | . . . . . 3 1 . . . . . . . . . . Damage (minor) 3 | . . . . . 3 . . . . . . . . . . . Damage (major) 11 | . . . . . 11 . . . . . . . . . . . Damage (core) 3 | . . . . . 2 1 . . . . . . . . . . Siege Activations . | . . . . . . . . . . . . . . . . . Robots Corrupted 1 | . 1 . . . . . . . . . . . . . . . Combat Hostiles 1 | . 1 . . . . . . . . . . . . . . . Parts Fried 3 | . 3 . . . . . . . . . . . . . . . Impact Corruptions . | . . . . . . . . . . . . . . . . . Robots Melted 7 | . . . . . 2 1 . . . . 1 . . 2 1 . Combat Hostiles 7 | . . . . . 2 1 . . . . 1 . . 2 1 . Parts Melted 24 | . . 2 . . 11 2 . . . 1 1 . . 7 . . Heat Transferred 10287 | . 200 851 . . 2446 1428 . . 811 785 598 . . 2400 694 74 Parts Sabotaged . | . . . . . . . . . . . . . . . . . Parts Stolen . | . . . . . . . . . . . . . . . . . Parts Stripped . | . . . . . . . . . . . . . . . . . Power Chain Reactions 4 | . 3 . . . . . . . . . . . . 1 . . Alert | -11 -10 -10 -9 -9 -6 -6 -6 -6 -5 -5 -5 -5 -5 -4 -4 -4 ------- Run | Yrd Mat Sub Rec Scr Fac Low Low Dat Pro Fac Upp Upp Zhi Pro Fac Gar Peak Influence 790 | . 362 . 50 . 391 . . . . 790 . . . . 127 126 Initial 96 | . . . 50 . . . . . . 96 . . . . 12 61 Average 148 | . 173 . 50 . 106 . . . . 314 . . . . 65 104 Maximum Alert Level 3 | . 1 . . . 1 . . . . 3 . . . . . . Low Security (%) 76 | 100 70 . 100 . 79 . . . . 57 . . . . 100 100 Level 1 19 | . 29 . . . 20 . . . . 3 . . . . . . Level 2 3 | . . . . . . . . . . 27 . . . . . . Level 3 1 | . . . . . . . . . . 10 . . . . . . Level 4 . | . . . . . . . . . . . . . . . . . Level 5 . | . . . . . . . . . . . . . . . . . High Security . | . . . . . . . . . . . . . . . . . Max Security . | . . . . . . . . . . . . . . . . . Squads Dispatched 18 | . 3 . . . 9 . . . . 4 . . . . 2 . Investigation 8 | . 2 . . . 4 . . . . 1 . . . . 1 . Extermination 4 | . . . . . 2 . . . . 1 . . . . 1 . Reinforcement 5 | . 1 . . . 2 . . . . 2 . . . . . . Assault . | . . . . . . . . . . . . . . . . . Garrison 1 | . . . . . 1 . . . . . . . . . . . Intercept . | . . . . . . . . . . . . . . . . . Searches Triggered . | . . . . . . . . . . . . . . . . . Data Miner Redirects 1 | . . . . . . . . . . 1 . . . . . . Construction Impeded 1 | . . . . . 1 . . . . . . . . . . . Haulers Reinforced . | . . . . . . . . . . . . . . . . . Active Scanning Responses . | . . . . . . . . . . . . . . . . . Cargo Convoy Interrupts . | . . . . . . . . . . . . . . . . . Stealth | -11 -10 -10 -9 -9 -6 -6 -6 -6 -5 -5 -5 -5 -5 -4 -4 -4 --------- Run | Yrd Mat Sub Rec Scr Fac Low Low Dat Pro Fac Upp Upp Zhi Pro Fac Gar Distress Signals 6 | . 2 . . . 2 . . . . . . . . . 2 . Communications Jammed 11 | . . . . . . . . . . 4 . . . . 7 . Distress Signals 11 | . . . . . . . . . . 4 . . . . 7 . Times Spotted 171 | . 19 24 . . 29 8 9 . 12 12 4 3 . 20 16 15 Peak Tracking Total 13 | . 4 4 . . 4 4 9 . 5 6 4 2 . 6 8 13 Tactical Retreats 16 | . 1 3 . . 3 . 2 . 1 . . 1 . 2 3 . Traps | -11 -10 -10 -9 -9 -6 -6 -6 -6 -5 -5 -5 -5 -5 -4 -4 -4 ------- Run | Yrd Mat Sub Rec Scr Fac Low Low Dat Pro Fac Upp Upp Zhi Pro Fac Gar Traps Triggered 7 | . 1 1 . . 2 . . . . . . 1 . . 1 1 Indirectly . | . . . . . . . . . . . . . . . . . Trap Hack Attempts . | . . . . . . . . . . . . . . . . . Triggered . | . . . . . . . . . . . . . . . . . Disarmed . | . . . . . . . . . . . . . . . . . Reprogrammed . | . . . . . . . . . . . . . . . . . Reused . | . . . . . . . . . . . . . . . . . Traps Extracted . | . . . . . . . . . . . . . . . . . Installed . | . . . . . . . . . . . . . . . . . Triggered 2 | . . . . . . . . . . . 2 . . . . . Machines | -11 -10 -10 -9 -9 -6 -6 -6 -6 -5 -5 -5 -5 -5 -4 -4 -4 ---------- Run | Yrd Mat Sub Rec Scr Fac Low Low Dat Pro Fac Upp Upp Zhi Pro Fac Gar Machines Disabled 6 | . 2 3 . . . . . . . . . . . . 1 . Max in Single Turn 1 | . 1 1 . . . . . . . . . . . . 1 . Machines Repaired . | . . . . . . . . . . . . . . . . . Machines Dismantled . | . . . . . . . . . . . . . . . . . Machines Sabotaged . | . . . . . . . . . . . . . . . . . Overloaded Fab Kills . | . . . . . . . . . . . . . . . . . Hacking | -11 -10 -10 -9 -9 -6 -6 -6 -6 -5 -5 -5 -5 -5 -4 -4 -4 --------- Run | Yrd Mat Sub Rec Scr Fac Low Low Dat Pro Fac Upp Upp Zhi Pro Fac Gar Machines Accessed 41 | . 6 4 . 4 9 . . 4 . 2 . 1 9 . 2 . Terminals 10 | . 6 . . . 2 . . . . 1 . . . . 1 . Fabricators 2 | . . . . . 2 . . . . . . . . . . . Repair Stations 1 | . . . . . 1 . . . . . . . . . . . Recycling Units 3 | . . . . . 2 . . . . 1 . . . . . . Scanalyzers 1 | . . . . . 1 . . . . . . . . . . . Garrison Access 2 | . . . . . 1 . . . . . . . . . 1 . Total Hacks 151 | . 18 6 . 26 18 . . 28 . 2 . 1 48 . 4 . Successful 128 | . 10 6 . 26 7 . . 28 . 1 . 1 48 . 1 . Failed 23 | . 8 . . . 11 . . . . 1 . . . . 3 . Catastrophic 9 | . 1 . . . 6 . . . . 1 . . . . 1 . Database Lockouts . | . . . . . . . . . . . . . . . . . Manual 12 | . 3 . . . 7 . . . . 2 . . . . . . Terminals 25 | . 18 . . . 4 . . . . 1 . . . . 2 . Fabricators 4 | . . . . . 4 . . . . . . . . . . . Repair Stations 1 | . . . . . 1 . . . . . . . . . . . Recycling Units 3 | . . . . . 2 . . . . 1 . . . . . . Scanalyzers 4 | . . . . . 4 . . . . . . . . . . . Garrison Access 5 | . . . . . 3 . . . . . . . . . 2 . Terminal Hacks 119 | . 10 6 . 26 . . . 28 . . . 1 48 . . . Record 69 | . . 3 . 19 . . . 11 . . . . 36 . . . Part Schematic 15 | . . . . . . . . 11 . . . . 4 . . . Robot Schematic 3 | . . . . . . . . 3 . . . . . . . . Robot Analysis 16 | . 5 . . 7 . . . . . . . . 4 . . . Prototype ID Bank 10 | . 3 . . . . . . 3 . . . . 4 . . . Open Door 2 | . . 1 . . . . . . . . . 1 . . . . Terminal Index 1 | . 1 . . . . . . . . . . . . . . . Zone Layout 1 | . 1 . . . . . . . . . . . . . . . Derelict Proto ID Bank 1 | . . 1 . . . . . . . . . . . . . . Release Object 1 | . . 1 . . . . . . . . . . . . . . Fabricator Hacks 1 | . . . . . 1 . . . . . . . . . . . Network Status 1 | . . . . . 1 . . . . . . . . . . . Repair Station Hacks . | . . . . . . . . . . . . . . . . . Recycling Unit Hacks . | . . . . . . . . . . . . . . . . . Scanalyzer 3 | . . . . . 3 . . . . . . . . . . . Insert Component 2 | . . . . . 2 . . . . . . . . . . . Analyze 1 | . . . . . 1 . . . . . . . . . . . Garrison Access Hacks 1 | . . . . . . . . . . . . . . . 1 . Unlock Access 1 | . . . . . . . . . . . . . . . 1 . Unauthorized Hacks 4 | . . . . . 3 . . . . 1 . . . . . . Terminals 1 | . . . . . 1 . . . . . . . . . . . Botnet 1 | . . . . . 1 . . . . . . . . . . . Fabricators . | . . . . . . . . . . . . . . . . . Repair Stations 3 | . . . . . 2 . . . . 1 . . . . . . Recycling Units . | . . . . . . . . . . . . . . . . . Fedlink 1 | . . . . . 1 . . . . . . . . . . . Scrapoids 2 | . . . . . 1 . . . . 1 . . . . . . Scanalyzers . | . . . . . . . . . . . . . . . . . Garrison Access . | . . . . . . . . . . . . . . . . . Data Cores Recovered 1 | . . . . . 1 . . . . . . . . . . . Used . | . . . . . . . . . . . . . . . . . Hacking Detections 15 | . 6 . . . 7 . . . . 1 . . . . 1 . Full Trace Events 4 | . 2 . . . 1 . . . . . . . . . 1 . Feedback Events 1 | . . . . . . . . . . . . . . . 1 . Corruption 1 | . . . . . . . . . . . . . . . 1 . Feedback Blocked . | . . . . . . . . . . . . . . . . . Robot Schematics Acquired 3 | . . . . . . . . 3 . . . . . . . . Robots Built . | . . . . . . . . . . . . . . . . . Authchips . | . . . . . . . . . . . . . . . . . Time . | . . . . . . . . . . . . . . . . . Total Robot Build Rating . | . . . . . . . . . . . . . . . . . Part Schematics Acquired 16 | . . . . . 1 . . 11 . . . . 4 . . . Parts Built . | . . . . . . . . . . . . . . . . . Authchips . | . . . . . . . . . . . . . . . . . Time . | . . . . . . . . . . . . . . . . . Total Part Build Rating . | . . . . . . . . . . . . . . . . . Parts Repaired . | . . . . . . . . . . . . . . . . . Time . | . . . . . . . . . . . . . . . . . Parts Recycled . | . . . . . . . . . . . . . . . . . Recycled Matter . | . . . . . . . . . . . . . . . . . Retrieved Matter . | . . . . . . . . . . . . . . . . . Retrieved Components . | . . . . . . . . . . . . . . . . . Parts Scanalyzed 2 | . . . . . 2 . . . . . . . . . . . Part Schematics Acquired 1 | . . . . . 1 . . . . . . . . . . . Parts Damaged 1 | . . . . . 1 . . . . . . . . . . . Bothacking | -11 -10 -10 -9 -9 -6 -6 -6 -6 -5 -5 -5 -5 -5 -4 -4 -4 ------------ Run | Yrd Mat Sub Rec Scr Fac Low Low Dat Pro Fac Upp Upp Zhi Pro Fac Gar Used RIF Installer . | . . . . . . . . . . . . . . . . . Robots Hacked . | . . . . . . . . . . . . . . . . . Non-combat . | . . . . . . . . . . . . . . . . . Combat . | . . . . . . . . . . . . . . . . . Robot Hacks Applied . | . . . . . . . . . . . . . . . . . Relay Couplers Released . | . . . . . . . . . . . . . . . . . Fabnet Peak Effective % . | . . . . . . . . . . . . . . . . . Robots Rewired 2 | . . . . . . . . . . . . . . 2 . . Allies Hacked . | . . . . . . . . . . . . . . . . . Hacks Repelled . | . . . . . . . . . . . . . . . . . Allies | -11 -10 -10 -9 -9 -6 -6 -6 -6 -5 -5 -5 -5 -5 -4 -4 -4 -------- Run | Yrd Mat Sub Rec Scr Fac Low Low Dat Pro Fac Upp Upp Zhi Pro Fac Gar Total Allies 13 | . . . . . 5 . . . 1 5 . . . 2 . . Largest Group 6 | . . . . . 5 3 1 . 1 6 4 3 . 1 . . Highest-Rated Group 340 | . . . . . 140 84 28 . 96 340 237 190 . 48 . . Highest-Rated Ally 96 | . . . . . 28 28 28 . 96 96 96 96 . 48 . . Total Orders . | . . . . . . . . . . . . . . . . . Ally Attacks 203 | . . . . . 59 29 3 . 29 72 8 . . 3 . . Total Damage 4606 | . . . . . 1042 437 41 . 940 1864 201 . . 81 . . Kills 35 | . . . . . 10 3 . . 7 14 1 . . . . . Allies Corrupted . | . . . . . . . . . . . . . . . . . Allies Melted . | . . . . . . . . . . . . . . . . . Intel | -11 -10 -10 -9 -9 -6 -6 -6 -6 -5 -5 -5 -5 -5 -4 -4 -4 ------- Run | Yrd Mat Sub Rec Scr Fac Low Low Dat Pro Fac Upp Upp Zhi Pro Fac Gar Robot Analysis Total 16 | . 5 . . 7 . . . . . . . . 4 . . . Derelict Logs Recovered 8 | . . 1 . 3 . . 1 . 2 . . . . 1 . . Drone Launches . | . . . . . . . . . . . . . . . . . Drone Recoveries . | . . . . . . . . . . . . . . . . . Decoded 0b10 Intel 18 | . . . . . 18 . . . . . . . . . . . Garrisons 1 | . . . . . 1 . . . . . . . . . . . Patrols 1 | . . . . . 1 . . . . . . . . . . . Investigations 4 | . . . . . 4 . . . . . . . . . . . Reinforcements 5 | . . . . . 5 . . . . . . . . . . . Guards 7 | . . . . . 7 . . . . . . . . . . . Exploration | -11 -10 -10 -9 -9 -6 -6 -6 -6 -5 -5 -5 -5 -5 -4 -4 -4 ------------- Run | Yrd Mat Sub Rec Scr Fac Low Low Dat Pro Fac Upp Upp Zhi Pro Fac Gar Turns Passed 12438 | 73 1181 3646 84 2332 1262 443 466 93 505 402 345 312 209 770 254 61 Spaces Moved 7740 | 41 392 2026 53 1487 757 336 353 97 434 276 305 262 190 510 141 80 Core 66 | 2 . . . . 6 . . . . 1 . . . . 20 37 Treads 4344 | 39 392 2026 53 1487 328 . . . . . . . . 19 . . Legs 16 | . . . . . 16 . . . . . . . . . . . Wheels 3268 | . . . . . 407 336 353 97 434 275 305 262 190 491 118 . Hover . | . . . . . . . . . . . . . . . . . Flight 46 | . . . . . . . . . . . . . . . 3 43 Fastest Speed 40 | 50 160 160 160 155 80 95 93 93 93 90 100 110 90 80 40 40 Average Speed 133 | 154 160 160 160 155 127 106 95 93 98 107 105 110 101 107 96 45 Slowest Speed 750 | 160 160 160 160 160 550 130 108 93 115 750 110 110 120 250 600 100 Overloaded Moves . | . . . . . . . . . . . . . . . . . Propulsion Burnouts . | . . . . . . . . . . . . . . . . . Robots Hopped . | . . . . . . . . . . . . . . . . . Cave-ins Triggered . | . . . . . . . . . . . . . . . . . Teleports 1 | . . . . . . . . . . . . . 1 . . . Exploration Rate (%) 47 | 4 68 96 10 90 27 50 54 70 72 11 48 49 62 62 6 20 Regions Visited 16 Branch Regions 11 Pre-discovered Areas 7 | . . 1 . 2 . . . 1 . . . . 3 . . . Known Exits Taken 6 | . . . . . . . 1 1 1 1 . . . 1 1 . Unknown Exits Taken 10 | 1 1 1 1 1 1 1 . . . . 1 1 1 . . . Scrap Searched 25 | . . 14 . 3 . 2 2 . 3 . . . . 1 . . Spaces Dug 4 | . . 1 . . . . . . . 2 . . . . 1 . Terrain Destroyed 109 | . 13 5 . . 17 . . . 4 16 1 . . 45 8 . Melee . | . . . . . . . . . . . . . . . . . Projectile 71 | . . 5 . . 1 . . . 4 16 1 . . 36 8 . AOE 38 | . 13 . . . 16 . . . . . . . . 9 . . Terrain Rammed . | . . . . . . . . . . . . . . . . . Walls Destroyed . | . . . . . . . . . . . . . . . . . Machines Disabled . | . . . . . . . . . . . . . . . . . Actions | -11 -10 -10 -9 -9 -6 -6 -6 -6 -5 -5 -5 -5 -5 -4 -4 -4 --------- Run | Yrd Mat Sub Rec Scr Fac Low Low Dat Pro Fac Upp Upp Zhi Pro Fac Gar Total 9236 | 48 879 2275 52 1509 935 391 480 102 471 343 316 287 206 634 207 101 Wait 861 | . 433 115 . . 57 14 121 . 6 17 4 17 . 53 23 1 Move 7724 | 40 391 2025 52 1486 756 335 352 96 433 275 304 261 189 509 140 80 Hop . | . . . . . . . . . . . . . . . . . Pick Up 50 | 2 8 9 . 5 10 3 1 . 2 5 . 3 . . 2 . Fast Attach 88 | 6 3 2 . 6 22 7 2 . 1 11 1 1 8 8 8 2 Attach 34 | . 1 6 . . 8 2 2 . 2 2 . . . 3 4 4 Detach 10 | . . 1 . . . 2 2 . . 1 . . . . 2 2 Swap 6 | . 1 . . 1 2 . . . . 1 . . . 1 . . Drop 78 | . 6 8 . 11 12 10 . 6 . 8 1 5 9 . 1 1 Fire 334 | . 36 92 . . 68 18 . . 27 19 6 . . 38 26 4 Melee . | . . . . . . . . . . . . . . . . . Ram 4 | . . . . . . . . . . 2 . . . . 1 1 Kick . | . . . . . . . . . . . . . . . . . Crush . | . . . . . . . . . . . . . . . . . Escape Stasis 6 | . . . . . . . . . . . . . . . . 6 Rewire 24 | . . . . . . . . . . 2 . . . 22 . . Trap . | . . . . . . . . . . . . . . . . . Miscellaneous 17 | . . 17 . . . . . . . . . . . . . . Route ------- -11/Scrapyard -10/Materials (discovered 3 exits: [*Mat x2] / *Sub) -10/Subcaves (discovered 3 exits: [*Mat x2] / [*Rec]) -9/Recycling -9/Scraptown (discovered 2 exits: *Fac x2) -6/Factory (discovered 5 exits: *Fac x4 / [*Low]) -6/Lower Caves -6/Lower Caves -6/Data Miner -5/Proximity Caves -5/Factory (discovered 3 exits: *Fac x2 / *Upp) -5/Upper Caves -5/Upper Caves -5/Zhirov -4/Proximity Caves -4/Factory -4/Garrison History --------- Turn | Location | Event 7 | -11/Scrapyard | Discovered new exit (range 15) 74 | -11/Scrapyard | Entered Materials 303 | -10/Materials | Build established: Mutant 313 | -10/Materials | Discovered new exit (range 17) 703 | -10/Materials | Discovered new exit (range 15) 1224 | -10/Materials | Discovered new exit (range 6) 1255 | -10/Materials | Entered Subcaves 1257 | -10/Subcaves | Discovered new exit (range 5) 1279 | -10/Subcaves | Disturbed a concealed Subdweller 1355 | -10/Subcaves | Discovered new exit (range 9) 1722 | -10/Subcaves | Released subatomizers from SUBCON Basin 2212 | -10/Subcaves | Visited Clippyterm 2217 | -10/Subcaves | Learned 40 Factory zone layouts 2329 | -10/Subcaves | A swath of the cavern ceiling suddenly collapsed 2369 | -10/Subcaves | Disturbed a concealed Subdweller 2534 | -10/Subcaves | Shifting Twisted Machinery released Sub. Power Source 2543 | -10/Subcaves | Learned location of Zion (-7) 2562 | -10/Subcaves | Shifting Twisted Machinery released Sub. Laser 2786 | -10/Subcaves | A swath of the cavern ceiling suddenly collapsed 3564 | -10/Subcaves | Visited 4L-MR0's lab 3584 | -10/Subcaves | Found Meta Core 3722 | -10/Subcaves | Attached Meta Core, gained temporary slots: Propulsion, Utility, Weapon 3925 | -10/Subcaves | Curiously followed by a Cobbler waking with a query about "LVR3C" 4016 | -10/Subcaves | Shifting Twisted Machinery released Sub. Machine Gun 4025 | -10/Subcaves | Shifting Twisted Machinery released Sub. Beam Cannon 4066 | -10/Subcaves | Build established: Subdweller-Tank 4818 | -10/Subcaves | Discovered new exit (range 10) 4901 | -10/Subcaves | Entered Recycling 4943 | -9/Recycling | Scanned before Scraplab entrance 4965 | -9/Recycling | Entered Scraplab 4980 | -9/Recycling | Discovered new exit (range 4) 4985 | -9/Recycling | Entered Scraptown 5339 | -9/Scraptown | Visited TADAMA 5379 | -9/Scraptown | Visited Symbiants 5399 | -9/Scraptown | Visited Fellowship of the Rings 5449 | -9/Scraptown | Visited UFD Registry 5449 | -9/Scraptown | Registered with UFD as "Nanoranger" 5528 | -9/Scraptown | Discovered new exit (range 11) 5559 | -9/Scraptown | Guru changed UFD alias to "Flexiframe" 5946 | -9/Scraptown | Visited Shadow of the Wyrm 5958 | -9/Scraptown | Visited SPCMW 6002 | -9/Scraptown | Visited IN-MT5's Study 6075 | -9/Scraptown | Scanned Subdweller tech in exchange for log data 6078 | -9/Scraptown | Learned 12 Research zone layouts 6079 | -9/Scraptown | Learned Research emergency access door positions 6081 | -9/Scraptown | Learned location of 1 exit from Factory 6120 | -9/Scraptown | Visited Cyclists 6144 | -9/Scraptown | Entered Cyclist Reading Room 6151 | -9/Scraptown | Learned location of Exiles (-9) 6234 | -9/Scraptown | Visited Analyses Database 6293 | -9/Scraptown | Visited Curators Association 6324 | -9/Scraptown | Visited Supply Room 6498 | -9/Scraptown | Delivered Scrap Shield to a Scientist 6540 | -9/Scraptown | Visited Supply Room 6645 | -9/Scraptown | Visited DA-N13 Charitable Foundation 6653 | -9/Scraptown | Found DCF Scrap (29 items) 6698 | -9/Scraptown | Visited Scrapoid Pod Storage 6729 | -9/Scraptown | Visited Chapter 10 6789 | -9/Scraptown | Build established: Tank 6790 | -9/Scraptown | Visited Infowarlord's Domain 6858 | -9/Scraptown | Visited Modified Component R&D 6988 | -9/Scraptown | Visited Research Penetration Think Tank 7173 | -9/Scraptown | Build established: Mutant 7211 | -9/Scraptown | Discovered new exit (range 5) 7264 | -9/Scraptown | Found Scrap Suit 7317 | -9/Scraptown | Entered Factory 7317 | -6/Factory | Evolved 8 slots: Power x2, Propulsion x2, Utility x3, Weapon x1 7318 | -6/Factory | Identified exit to Factory 7616 | -6/Factory | Garrison activated, responded to threat 7825 | -6/Factory | Build established: Tank 8001 | -6/Factory | Lost 7 parts (1p1n4u1w) 8056 | -6/Factory | Core integrity fell below 50% 8106 | -6/Factory | Lost 4 parts (1p1u2w) 8285 | -6/Factory | Scrapoids reinforcements arrived? 8406 | -6/Factory | Found Scrap Suit 8557 | -6/Factory | Discovered new exit (range 12) 8579 | -6/Factory | Entered Lower Caves 8579 | -6/Lower Caves | Accompanied by 3 allies 8581 | -6/Lower Caves | UFD Scientist delivered a prototype 8585 | -6/Lower Caves | Found Prototype Protection 8585 | -6/Lower Caves | Identified Enh. Scrap Shield 8973 | -6/Lower Caves | Discovered new exit (range 5) 9022 | -6/Lower Caves | Entered another Lower Caves area 9022 | -6/Lower Caves | Accompanied by 1 ally 9066 | -6/Lower Caves | Learned Factory trap positions 9070 | -6/Lower Caves | Spotted B-75 Beast 9170 | -6/Lower Caves | Found Scrap Suit 9482 | -6/Lower Caves | Discovered new exit (range 8) 9487 | -6/Lower Caves | Identified exit to Data Miner 9488 | -6/Lower Caves | Entered Data Miner 9491 | -6/Data Miner | Discovered new exit (range 8) 9510 | -6/Data Miner | Met Data Miner 9534 | -6/Data Miner | Learned location of Section 7 (-3) 9534 | -6/Data Miner | Acquired the access code to Warlord's prototype stash 9545 | -6/Data Miner | Received God Mode back door access code from Data Miner 9580 | -6/Data Miner | Identified exit to Proximity Caves 9581 | -6/Data Miner | Entered Proximity Caves 9653 | -5/Proximity Caves | Escorted by Enhanced Grunt 9759 | -5/Proximity Caves | Learned location of 1 exit from Factory 9859 | -5/Proximity Caves | Lost 5 parts (1p2n2w) 9935 | -5/Proximity Caves | Learned 12 Factory zone layouts 9993 | -5/Proximity Caves | Spotted B-75 Beast 10018 | -5/Proximity Caves | Allies destroyed B-75 Beast 10063 | -5/Proximity Caves | Core integrity fell below 20% 10067 | -5/Proximity Caves | Discovered exit to Factory (range 7) 10086 | -5/Proximity Caves | Entered Factory 10086 | -5/Factory | Accompanied by 1 ally 10086 | -5/Factory | Evolved 2 slots: Utility x2 10087 | -5/Factory | Identified exit to Upper Caves 10088 | -5/Factory | Identified exit to Factory 10089 | -5/Factory | Loaded intel: 86 trap records 10114 | -5/Factory | Scrapoids reinforcements arrived? 10122 | -5/Factory | Incoming investigation squad redirected 10244 | -5/Factory | Found Scrap Suit 10338 | -5/Factory | Discovered exit to Factory (range 16) 10488 | -5/Factory | Entered Upper Caves 10488 | -5/Upper Caves | Accompanied by 4 allies 10568 | -5/Upper Caves | Build established: Scavenger-Tank 10824 | -5/Upper Caves | Discovered new exit (range 5) 10833 | -5/Upper Caves | Entered another Upper Caves area 10833 | -5/Upper Caves | Accompanied by 3 allies 10896 | -5/Upper Caves | System corruption reached 10% 10915 | -5/Upper Caves | Lost 3 allies 10947 | -5/Upper Caves | Encountered a Warlord checkpoint 11134 | -5/Upper Caves | Discovered new exit (range 10) 11145 | -5/Upper Caves | Entered Zhirov 11145 | -5/Zhirov | Discovered new exit (range 4) 11166 | -5/Zhirov | Met Zhirov 11184 | -5/Zhirov | Learned location of Quarantine (-3) 11184 | -5/Zhirov | Learned location of Testing (-2) 11184 | -5/Zhirov | Learned location of Command (-1) 11204 | -5/Zhirov | Zhirov requested help retrieving the SGEMP Prototype 11225 | -5/Zhirov | Found Alien Artifact 11225 | -5/Zhirov | Identified Integrated Dissipator 11225 | -5/Zhirov | Installed Integrated Dissipator, increased core heat dissipation (+20) 11240 | -5/Zhirov | Found Alien Artifact 11240 | -5/Zhirov | Identified Transdimensional Reconstructor 11240 | -5/Zhirov | Warped through subspace 11354 | -5/Zhirov | Entered Proximity Caves 11446 | -4/Proximity Caves | Attracted the attention of an 0b10 outpost 11627 | -4/Proximity Caves | Attracted the attention of an 0b10 checkpoint 11808 | -4/Proximity Caves | Spotted B-86 Titan 11951 | -4/Proximity Caves | Lost 3 parts (1u2w) 12015 | -4/Proximity Caves | Lost 4 parts (1p1u2w) 12124 | -4/Proximity Caves | Entered Factory 12124 | -4/Factory | Evolved 2 slots: Propulsion x1, Utility x1 12157 | -4/Factory | System corruption reached 10% 12320 | -4/Factory | Lost 9 parts (2p2n3u2w) 12374 | -4/Factory | Identified exit to Garrison 12378 | -4/Factory | Entered Garrison 12394 | -4/Garrison | Lost 6 parts (1n2u3w) 12414 | -4/Garrison | Triggered checkpoint 12415 | -4/Garrison | Core integrity fell below 50% 12426 | -4/Garrison | Core integrity fell below 20% 12439 | -4/Garrison | Destroyed by S-27 Virus with Autogun Last Messages --------------- 12421_ Slug penetrates H-77 Assassin. 12422_ Field strength at 39. 12422_ Penetrated by Slug. 12422_ Slug penetrates G-67 Veteran. 12423_ Penetrated by Slug. 12423_ Slug penetrates Wall. 12424_ Field strength at 1. 12424_ Stasis field depleted. 12425_ Slug penetrates Reinforced Barrier. 12425_ Slug penetrates S-27 Virus. 12425_ S-27 Virus destroyed. 12425_ Slug penetrates Wall. 12426_ Dropped Energy Well. 12426_ Penetrated by Slug. 12427_ Wall collapses. 12430_ System corrupted: Matter fused (-10). 12434_ Slug penetrates Wall. 12434_ Slug penetrates G-67 Veteran. 12437_ Penetrated by Slug. 12437_ Slug penetrates Wall. Map ----- +----------------------------------------------------+ | ?????????????????# #????????? | | ?????????????????# ######### ##########????????? | | ?????????????????# ????????# #?????????????????? | | ?????????????????# ????????# #?????????????????? | | ?????????????????# ????????# #?????????????????? | | ?????????????????# ????????# #?????????????????? | | ???????????#?????# ????????# #?????????????????? | | ??????## ## """## ##??????# #?????????????????? | | ??????# ######## #?????????????????? | | ?????? #?????????????????? | | ?????? #?????????????????? | | ??????? ???# ## ###########?????????????????? | | ??????# ## ## ###?????????????????????????? | | ?????? #?????????????????????????? | | ????? #?????????????????????????? | | ????? ####??????????????????????? | | ????? " #??????????????????????? | | ??????# ## ## *#### #??????????????????????? | | ??????? ? ## ## [%"###########????????????????? | | ??????# #????????????????? | | ??????# #????????????????? | | ??????# ! #????????????????? | | ??????# ## ##//#####;### #????????????????? | | ???????????# ?# #???#h#?????#????????????????? | | ???????????####??# #???# #??????????????????????? | | ?????????????????# #???#@#??????????????????????? | | ?????????????????# #???# #??????????????????????? | | ?????????????????# #???# #??????????????????????? | | ?????????????????# #####s###????????????????????? | | ?????????????????# #????????????????????? | | ?????????????????# #????????????????????? | | ?????????????????############????????????????????? | | ?????????????????????????????????????????????????? | | ?????????????????????????????????????????????????? | | ?????????????????????????????????????????????????? | | ?????????????????????????????????????????????????? | | ?????????????????????????????????????????????????? | | ?????????????????????????????????????????????????? | | ?????????????????????????????????????????????????? | | ?????????????????????????????????????????????????? | | ?????????????????????????????????????????????????? | | ?????????????????????????????????????????????????? | | ?????????????????????????????????????????????????? | | ?????????????????????????????????????????????????? | | ?????????????????????????????????????????????????? | | ?????????????????????????????????????????????????? | | ?????????????????????????????????????????????????? | | ?????????????????????????????????????????????????? | | ?????????????????????????????????????????????????? | | ?????????????????????????????????????????????????? | +----------------------------------------------------+ Best States ------------- Heat Dissipation 106 Coolant Potential 80 Energy Generation 55 Energy Capacity 780 Matter Stores 300 Matter Capacity 600 Sight Range 16 Terrain Scan Density 10 Jamming Range 14 Power Amplification 30 Armor Coverage 1025 Resistance: TH 10 Evasion (%) 62 Recoil Reduction 4 Particle Charging 20 Offensive Hacking 10 Item Schematics ----------------- System Restoration Module | -6/Factory | Scanalyzed Combat Drone Bay | -6/Data Miner | Free Lgt. Regenerative Plating | -6/Data Miner | Free Enh. Armored Leg | -6/Data Miner | Free Imp. Energy Well | -6/Data Miner | Free Kinetic Spear | -6/Data Miner | Free Adv. Thermal Shield | -6/Data Miner | Free Myomer Leg | -6/Data Miner | Free Imp. Component Analysis Suite | -6/Data Miner | Free Adv. Focal Shield | -6/Data Miner | Free Adv. Force Field | -6/Data Miner | Free Matter Neutralizer | -6/Data Miner | Free Assault Drone Bay | -5/Zhirov | Free Exp. Heat Sink | -5/Zhirov | Free Exp. Optical Array | -5/Zhirov | Free Imp. Arc Thrower | -5/Zhirov | Free Robot Schematics ------------------ B-48 Gladiator | -6/Data Miner | Free Y-64 Sentinel | -6/Data Miner | Free G-67 Veteran | -6/Data Miner | Free Fabricated ------------ Nothing Alien Tech Used ----------------- Integrated Dissipator Transdimensional Reconstructor Achievements -------------- None Challenges ------------ None Game ------ Seed ControlCoilStatue Manual? 0 Play Time 01:14:38 Cumulative 202.3 hours Start 2024.09.18 @ 22:09:39 End 2024.09.18 @ 23:24:43 Sessions 1 Manual Loads 0 Difficulty Rogue Special Mode None Game No. 184 Rogue 184 Adventurer 0 Explorer 0 Win Type - Total 3 Types 3/0/0/0/0/0/0/0/0 Lore% 53 Gallery% 68 Achievement% 56 Wizard Run 0 Options --------- Layout 0 ASCII 0 Keyboard 0 Movement Numpad Keybinds 0 Fullscreen 2 Font 18/SmallcapsGlow Map View 76x50 Zoom Use 0% Tactical HUD 1 Map Filters NONE Filters NONE Steam 1 RUN: 3039f5da-4709-468e-8fba-4311b81ab92b